bitfinex/quotes_BTCUSD_20251212
["timestamp","ask_amount","ask_price","bid_price","bid_amount"]
[1765531664831,0.7890144,92316.0,92315.0,0.00376389]
[1765531666440,0.67850678,92316.0,92315.0,0.00376389]
[1765531666644,0.66142678,92316.0,92315.0,0.00376389]
[1765531666846,0.67850678,92316.0,92315.0,0.00376389]
[1765531672685,0.64931123,92316.0,92315.0,0.00376389]
[1765531674434,0.59929284,92316.0,92315.0,0.00376389]
[1765531674607,0.57590276,92316.0,92315.0,0.00376389]
[1765531678543,0.60437916,92316.0,92315.0,0.00376389]
[1765531678756,0.62776924,92316.0,92315.0,0.00376389]
[1765531680206,0.6835931,92316.0,92315.0,0.00376389]
[1765531680423,0.96848763,92316.0,92315.0,0.00376389]
[1765531680626,0.26118637,92301.0,92300.0,0.001283]
[1765531680843,0.38169831,92301.0,92300.0,0.001283]
[1765531681258,0.38169831,92301.0,92300.0,0.001716]
[1765531681458,0.3860367,92301.0,92300.0,0.001716]
[1765531681631,0.42400445,92301.0,92300.0,0.001716]
[1765531682034,0.42700445,92301.0,92300.0,0.002716]
[1765531682377,0.43200445,92301.0,92300.0,0.003716]
[1765531685088,0.48202284,92301.0,92300.0,0.003716]
[1765531688830,0.60192824,92291.0,92290.0,0.0002]
[1765531689003,0.63546264,92291.0,92290.0,0.0002]
[1765531689448,0.63546264,92291.0,92290.0,0.00048872]
[1765531689655,0.63546264,92291.0,92290.0,1e-08]
[1765531689656,0.63980197,92291.0,92290.0,1e-08]
[1765531689846,2.30334059,92291.0,92290.0,1e-08]
[1765531690253,2.30495346,92291.0,92290.0,1e-08]
[1765531690459,2.30695346,92291.0,92290.0,0.00100001]
[1765531690733,1.34994584,92291.0,92290.0,1e-08]
[1765531691073,1.35794584,92291.0,92290.0,0.00200001]
[1765531691701,1.35394584,92291.0,92290.0,0.00100001]
[1765531691924,1.47045346,92291.0,92290.0,0.00200001]
[1765531692435,1.49960961,92291.0,92290.0,0.00200001]
[1765531693085,1.49954445,92291.0,92290.0,0.00200001]
[1765531693282,1.18054845,92291.0,92290.0,0.00200001]
[1765531693497,1.0237753,92291.0,92290.0,0.00200001]
[1765531693911,1.2717753,92291.0,92290.0,0.00200001]
[1765531698525,1.2888553,92291.0,92290.0,0.00200001]
[1765531701723,1.2888553,92291.0,92290.0,1e-08]
[1765531701932,1.2888553,92291.0,92290.0,0.00011663]
[1765531703839,1.2888553,92291.0,92290.0,1e-08]
[1765531707159,1.32780747,92291.0,92290.0,1e-08]
[1765531708301,1.2888553,92291.0,92290.0,1e-08]
[1765531710697,1.36981115,92291.0,92290.0,1e-08]
[1765531712333,1.40871303,92291.0,92290.0,1e-08]
[1765531712566,1.36981115,92291.0,92290.0,1e-08]
[1765531715395,1.42791976,92291.0,92290.0,1e-08]
[1765531716315,1.36981115,92291.0,92290.0,1e-08]
[1765531717176,1.39809719,92291.0,92290.0,1e-08]
[1765531720934,0.55747121,92271.0,92270.0,0.0002]
[1765531721135,1.92190645,92271.0,92270.0,0.0002]
[1765531721588,1.92624686,92271.0,92270.0,0.0002]
[1765531722424,1.93024686,92271.0,92270.0,0.0002]
[1765531722865,1.92824686,92271.0,92270.0,0.0002]
[1765531723030,2.00126632,92271.0,92270.0,0.0002]
[1765531723230,2.00626632,92271.0,92270.0,0.0002]
[1765531723432,2.12236632,92271.0,92270.0,0.0002]
[1765531723635,2.00826632,92271.0,92270.0,0.0002]
[1765531724427,2.04721673,92271.0,92270.0,0.0002]
[1765531725219,2.06330084,92271.0,92270.0,0.0002]
[1765531726595,2.06330084,92271.0,92270.0,0.0007776]
[1765531727291,2.02435043,92271.0,92270.0,0.0007776]
[1765531727716,2.06330084,92271.0,92270.0,0.0007776]
[1765531732983,2.06330084,92271.0,92260.0,0.0002]
[1765531732984,0.3112987,92261.0,92260.0,0.0002]
[1765531733208,0.35365675,92261.0,92260.0,0.0002]
[1765531733618,0.35799749,92261.0,92260.0,0.0002]
[1765531733994,0.35999749,92261.0,92260.0,0.0002]
[1765531734420,0.37707749,92261.0,92260.0,0.0002]
[1765531735142,0.38207749,92261.0,92260.0,0.0002]
[1765531736652,0.33278376,92261.0,92260.0,0.0002]
[1765531736938,0.34286376,92261.0,92260.0,0.0002]
[1765531737360,0.34486376,92261.0,92260.0,0.0002]
[1765531737666,0.34286376,92261.0,92260.0,0.0002]
[1765531737884,0.34386376,92261.0,92260.0,0.0002]
[1765531738096,0.40734707,92261.0,92260.0,0.0002]
[1765531738278,0.65934707,92261.0,92260.0,0.0002]
[1765531738451,0.68267199,92261.0,92260.0,0.00048886]
[1765531738656,0.67867199,92261.0,92260.0,0.00048886]
[1765531739051,0.68267199,92261.0,92260.0,0.00048886]
[1765531739257,0.68167199,92261.0,92260.0,0.00048886]
[1765531739420,0.67767199,92261.0,92260.0,0.00048886]
[1765531739821,0.68167199,92261.0,92260.0,0.00048886]
[1765531740035,0.68267199,92261.0,92260.0,0.00048886]
[1765531740238,0.68167199,92261.0,92260.0,0.00048886]
[1765531740657,0.68267199,92261.0,92260.0,0.00048886]
[1765531741077,0.68267199,92261.0,92260.0,0.00087799]
[1765531742230,0.67767199,92261.0,92260.0,0.00087799]
[1765531742386,0.68167199,92261.0,92260.0,0.00087799]
[1765531742588,0.68267199,92261.0,92260.0,0.00087799]
[1765531750957,0.67867199,92261.0,92260.0,0.00087799]
[1765531751288,0.68367199,92261.0,92260.0,0.00087799]
[1765531751483,0.97437199,92261.0,92260.0,0.00087799]
[1765531751816,1.96640999,92261.0,92260.0,1e-08]
[1765531752028,1.97040999,92261.0,92260.0,1e-08]
[1765531752230,1.96940999,92261.0,92260.0,1e-08]
[1765531752585,1.96640999,92261.0,92260.0,1e-08]
[1765531752786,1.96540999,92261.0,92260.0,1e-08]
[1765531753363,1.96740999,92261.0,92260.0,1e-08]
[1765531753900,1.97240999,92261.0,92260.0,1e-08]
[1765531755009,2.05547342,92261.0,92260.0,1e-08]
[1765531756637,2.03839342,92261.0,92260.0,1e-08]
[1765531756833,2.05547342,92261.0,92260.0,1e-08]
[1765531757543,1.81973342,92261.0,92260.0,1e-08]
[1765531757742,1.83681342,92261.0,92260.0,1e-08]
[1765531759093,1.89521151,92261.0,92260.0,1e-08]
[1765531764123,1.83681342,92261.0,92260.0,1e-08]
[1765531768537,1.83681342,92261.0,92240.0,0.0002]
[1765531768538,0.21682332,92241.0,92240.0,0.0002]
[1765531768742,0.21682332,92241.0,92230.0,0.0002]
[1765531768743,0.044504,92231.0,92230.0,0.0002]
[1765531768946,0.27843083,92231.0,92230.0,0.00029699]
[1765531769187,0.62928416,92231.0,92230.0,0.00029699]
[1765531769415,0.65262651,92231.0,92230.0,0.00029699]
[1765531769614,1.02352098,92231.0,92230.0,0.00029699]
[1765531769819,1.05369891,92231.0,92230.0,0.00029699]
[1765531770312,1.02513385,92231.0,92230.0,0.00029699]
[1765531770458,1.02713385,92231.0,92230.0,0.00029699]
[1765531770907,1.03213385,92231.0,92230.0,0.00029699]
[1765531771925,1.03013385,92231.0,92230.0,0.00029699]
[1765531772127,1.02813385,92231.0,92230.0,0.00029699]
[1765531772484,1.03113385,92231.0,92230.0,0.00029699]
[1765531772690,1.03413385,92231.0,92230.0,0.00029699]
[1765531772915,1.02813385,92231.0,92230.0,0.00029699]
[1765531773120,1.02513385,92231.0,92230.0,0.00029699]
[1765531773317,1.03113385,92231.0,92230.0,0.00029699]
[1765531773650,1.03413385,92231.0,92230.0,1e-08]
[1765531773943,0.21689386,92211.0,92200.0,0.0002]
[1765531774148,0.27847786,92211.0,92210.0,0.00029706]
[1765531774518,0.2828205,92211.0,92210.0,0.00174223]
[1765531776346,0.2868205,92211.0,92210.0,0.00174223]
[1765531776569,0.36484588,92211.0,92210.0,0.00174223]
[1765531780975,0.2868605,92211.0,92210.0,0.00174223]
[1765531785597,0.58487889,92211.0,92210.0,0.00174223]
[1765531789355,0.87557889,92211.0,92210.0,0.00174223]
[1765531789548,0.89887436,92211.0,92210.0,0.00174223]
[1765531789958,0.90898448,92211.0,92210.0,0.00174223]
[1765531790159,1.0194921,92211.0,92210.0,0.00174223]
[1765531790438,1.9239841,92211.0,92210.0,0.00174223]
[1765531790629,1.9209841,92211.0,92210.0,0.00174223]
[1765531790810,1.6842561,92211.0,92210.0,0.00174223]
[1765531791016,1.6872561,92211.0,92210.0,0.00174223]
[1765531791599,1.6862561,92211.0,92210.0,0.00174223]
[1765531792116,1.6872561,92211.0,92210.0,0.00174223]
[1765531794888,1.57674848,92211.0,92210.0,0.00174223]
[1765531796192,1.59581629,92211.0,92210.0,0.00174223]
[1765531796492,1.60593401,92211.0,92210.0,0.00174223]
[1765531796650,1.26833462,92211.0,92210.0,0.00174223]
[1765531796848,0.85897369,92211.0,92210.0,0.00174223]
[1765531797437,1.0194997,92211.0,92210.0,0.00174223]
[1765531798666,0.21698798,92171.0,92170.0,1e-08]
[1765531798876,0.3323656,92171.0,92170.0,0.00011668]
[1765531799294,0.29220592,92171.0,92170.0,0.00011668]
[1765531799501,0.33670992,92171.0,92170.0,0.00011668]
[1765531799714,0.29220592,92171.0,92170.0,0.00011668]
[1765531799925,0.33670992,92171.0,92170.0,0.00011668]
[1765531800560,0.33770992,92171.0,92170.0,0.00011668]
[1765531800966,0.33670992,92171.0,92170.0,0.00011668]
[1765531801192,0.31958992,92171.0,92170.0,0.00011668]
[1765531801395,0.32358992,92171.0,92170.0,0.00011668]
[1765531801606,0.34070992,92171.0,92170.0,0.00011668]
[1765531802025,0.33670992,92171.0,92170.0,0.00011668]
[1765531802271,0.33770992,92171.0,92170.0,0.00011668]
[1765531802524,0.33832279,92171.0,92170.0,0.00011668]
[1765531802775,0.33932279,92171.0,92170.0,0.00011668]
[1765531803613,0.32220279,92171.0,92170.0,0.00011668]
[1765531803826,0.33932279,92171.0,92170.0,0.00011668]
[1765531804045,0.34332279,92171.0,92170.0,0.00011668]
[1765531804249,0.34332279,92171.0,92170.0,0.00127363]
[1765531804456,0.33932279,92171.0,92170.0,0.00127363]
[1765531804975,0.34332279,92171.0,92170.0,0.00127363]
[1765531805154,0.34232279,92171.0,92170.0,0.00127363]
[1765531805596,0.34332279,92171.0,92170.0,0.00127363]
[1765531806038,0.32620279,92171.0,92170.0,0.00127363]
[1765531806249,0.2757416,92171.0,92170.0,0.00127363]
[1765531806469,0.02212,92171.0,92170.0,0.00127363]
[1765531807105,0.01812,92171.0,92170.0,0.00127363]
[1765531807316,0.02112,92171.0,92170.0,0.00127363]
[1765531807744,0.01812,92171.0,92170.0,0.00127363]
[1765531808174,0.0816005,92171.0,92170.0,0.00127363]
[1765531808390,0.15322799,92171.0,92170.0,0.00127363]
[1765531808851,0.15422799,92171.0,92170.0,0.00127363]
[1765531809075,0.15322799,92171.0,92170.0,0.00127363]
[1765531809301,0.08974749,92171.0,92170.0,0.00127363]
[1765531809520,0.09074749,92171.0,92170.0,0.00127363]
[1765531809820,0.09236036,92171.0,92170.0,0.00127363]
[1765531810030,0.09136036,92171.0,92170.0,0.00127363]
[1765531810247,0.12822214,92171.0,92170.0,0.00127363]
[1765531810462,0.12179861,92171.0,92170.0,0.00127363]
[1765531810914,0.11879861,92171.0,92170.0,0.00127363]
[1765531811359,0.18124053,92171.0,92170.0,0.00127363]
[1765531811574,0.18224053,92171.0,92170.0,0.00127363]
[1765531811784,0.18124053,92171.0,92170.0,0.00127363]
[1765531812200,0.19234262,92171.0,92170.0,0.00127363]
[1765531812636,0.19134262,92171.0,92170.0,0.00127363]
[1765531812843,0.19134262,92171.0,92160.0,0.0002]
[1765531812844,0.01085034,92163.0,92160.0,0.0002]
[1765531813055,0.044504,92161.0,92160.0,0.00029278]
[1765531813265,0.0918048,92161.0,92160.0,0.00029278]
[1765531813473,0.3825048,92161.0,92160.0,0.00029278]
[1765531813680,0.60386132,92161.0,92160.0,0.00029278]
[1765531814307,0.60586132,92161.0,92160.0,0.00029278]
[1765531815591,0.60686132,92161.0,92160.0,0.00029278]
[1765531816028,0.66697752,92161.0,92160.0,0.00029278]
[1765531816246,0.60225416,92161.0,92160.0,0.00029278]
[1765531816463,0.61533173,92161.0,92160.0,0.00029278]
[1765531816635,0.58043334,92161.0,92160.0,0.00029278]
[1765531816846,0.55621553,92161.0,92160.0,0.00029278]
[1765531817039,0.57333553,92161.0,92160.0,0.00029278]
[1765531817588,0.68384315,92161.0,92160.0,0.00029278]
[1765531818030,0.68284315,92161.0,92160.0,0.00029278]
[1765531818460,0.68384315,92161.0,92160.0,0.00029278]
[1765531818719,0.68384315,92161.0,92160.0,0.00058211]
[1765531818720,0.57333553,92161.0,92160.0,0.00058211]
[1765531819335,0.58343037,92161.0,92160.0,0.00058211]
[1765531820135,0.63344876,92161.0,92160.0,0.00058211]
[1765531820341,0.65670873,92161.0,92160.0,0.00058211]
[1765531820999,0.65370873,92161.0,92160.0,0.00058211]
[1765531821614,0.65270873,92161.0,92160.0,0.00058211]
[1765531822018,0.65570873,92161.0,92160.0,0.00058211]
[1765531822223,0.66170873,92161.0,92160.0,0.00058211]
[1765531822431,0.65870873,92161.0,92160.0,0.00058211]
[1765531822586,0.77221635,92161.0,92160.0,0.00058211]
[1765531822787,0.65570873,92161.0,92160.0,0.00058211]
[1765531823011,0.66170873,92161.0,92160.0,0.00058211]
[1765531824095,0.64458873,92161.0,92160.0,0.00058211]
[1765531824517,0.66170873,92161.0,92160.0,0.00058211]
[1765531825328,0.58843037,92161.0,92160.0,0.00058211]
[1765531825713,0.57833553,92161.0,92160.0,0.00058211]
[1765531825916,0.56933553,92161.0,92160.0,0.00058211]
[1765531826416,0.57433553,92161.0,92160.0,0.00058211]
[1765531826553,0.68484315,92161.0,92160.0,0.00058211]
[1765531826752,0.68784315,92161.0,92160.0,0.00058211]
[1765531826993,0.57733553,92161.0,92160.0,0.00058211]
[1765531827224,0.58743728,92161.0,92160.0,0.00058211]
[1765531828693,0.58744643,92161.0,92160.0,0.00058211]
[1765531831807,0.58244643,92161.0,92160.0,0.00058211]
[1765531832015,0.56532643,92161.0,92160.0,0.00058211]
[1765531832218,0.24313153,92161.0,92160.0,0.00058211]
[1765531832395,0.28763553,92161.0,92160.0,0.00058211]
[1765531832597,0.28463553,92161.0,92160.0,0.00058211]
[1765531832911,0.28163553,92161.0,92160.0,0.00058211]
[1765531833294,0.28363553,92161.0,92160.0,0.00058211]
[1765531834719,0.28663553,92161.0,92160.0,0.00058211]
[1765531835337,0.22501153,92161.0,92160.0,0.00058211]
[1765531836181,0.22001153,92161.0,92160.0,0.00058211]
[1765531836332,0.006,92161.0,92160.0,0.00058211]
[1765531837094,0.003,92161.0,92160.0,0.00058211]
[1765531837646,0.22785802,92163.0,92160.0,0.00058211]
[1765531837852,0.22785802,92163.0,92160.0,0.00029278]
[1765531838054,0.001,92161.0,92160.0,0.00129278]
[1765531838455,0.001,92161.0,92160.0,0.00029278]
[1765531838835,0.001,92163.0,92160.0,0.01314347]
[1765531839005,0.001,92163.0,92160.0,0.23015676]
[1765531839238,0.002,92163.0,92160.0,0.23015676]
[1765531839389,0.001,92163.0,92160.0,0.22815676]
[1765531839590,0.001,92161.0,92160.0,0.00229278]
[1765531840377,0.002,92161.0,92160.0,0.00229278]
[1765531840778,0.001,92161.0,92160.0,0.00029278]
[1765531841146,0.001,92161.0,92160.0,0.00129278]
[1765531841540,0.001,92161.0,92160.0,0.00029278]
[1765531841695,0.01085022,92164.0,92161.0,0.01085057]
[1765531841875,0.58487521,92253.0,92164.0,0.01085022]
[1765531841876,0.01084928,92172.0,92164.0,0.01085022]
[1765531842082,0.01084951,92170.0,92165.0,0.04881785]
[1765531842499,0.01084975,92168.0,92165.0,0.04881785]
[1765531842675,0.01084951,92170.0,92167.0,0.01084987]
[1765531843238,0.01184963,92169.0,92166.0,0.01084998]
[1765531843414,0.01084963,92169.0,92166.0,0.01084998]
[1765531843584,0.01084975,92168.0,92165.0,0.04881785]
[1765531843791,0.22784548,92168.0,92165.0,0.03796775]
[1765531844340,0.22884548,92168.0,92165.0,0.03896775]
[1765531845499,0.01284975,92168.0,92165.0,0.03896775]
[1765531845705,0.01284975,92168.0,92165.0,0.04981785]
[1765531846342,0.002,92168.0,92166.0,0.21699976]
[1765531847411,0.001,92168.0,92166.0,0.21699976]
[1765531847592,0.002,92168.0,92166.0,0.21799976]
[1765531848498,0.001,92168.0,92166.0,0.21799976]
[1765531848759,0.002,92168.0,92166.0,0.21799976]
[1765531848960,0.002,92168.0,92167.0,0.00781725]
[1765531849216,0.002,92168.0,92167.0,0.34164523]
[1765531849427,0.002,92168.0,92167.0,0.33382798]
[1765531849837,0.001,92168.0,92167.0,0.33382798]
[1765531850055,0.01084775,92185.0,92181.0,0.01084822]
[1765531850056,0.01712,92182.0,92181.0,0.01084822]
[1765531851052,0.01084775,92185.0,92182.0,0.0108481]
[1765531851259,0.22779108,92190.0,92184.0,0.03796775]
[1765531851716,0.01084681,92193.0,92189.0,0.01084728]
[1765531851917,0.01084622,92198.0,92193.0,0.01084681]
[1765531852235,0.01084633,92197.0,92196.0,0.04312798]
[1765531852392,0.01084633,92197.0,92194.0,0.01084669]
[1765531852585,0.01084633,92197.0,92193.0,0.01084681]
[1765531852790,0.01084704,92191.0,92188.0,0.2907]
[1765531852995,0.22778795,92191.0,92188.0,0.29079278]
[1765531853365,0.001,92190.0,92188.0,0.29079278]
[1765531853783,0.01712,92191.0,92189.0,0.21694562]
[1765531853988,0.01712,92195.0,92192.0,0.01084692]
[1765531854196,0.02796657,92195.0,92193.0,0.03796775]
[1765531854581,0.01712,92195.0,92193.0,0.03796775]
[1765531854809,0.01084528,92206.0,92202.0,0.01084575]
[1765531855008,0.01084528,92206.0,92200.0,0.01084598]
[1765531855009,0.01084551,92204.0,92200.0,0.01084598]
[1765531855380,0.01084551,92204.0,92201.0,0.01084586]
[1765531855557,0.01084563,92203.0,92199.0,0.0108461]
[1765531855757,0.01084575,92202.0,92199.0,0.0108461]
[1765531856394,0.01084575,92202.0,92200.0,0.001]
[1765531856792,0.21691738,92201.0,92200.0,0.001]
[1765531857819,0.22776324,92201.0,92197.0,0.01084633]
[1765531858025,0.23076324,92201.0,92200.0,0.001]
[1765531858836,0.23176324,92201.0,92200.0,0.001]
[1765531859017,0.004,92201.0,92200.0,0.001]
[1765531859787,0.001,92201.0,92198.0,0.2277702]
[1765531860066,0.004,92201.0,92198.0,0.2277702]
[1765531860231,0.004,92201.0,92200.0,0.50761973]
[1765531860745,0.001,92201.0,92200.0,0.2907]
[1765531860945,0.001,92201.0,92200.0,0.2937]
[1765531861148,0.001,92201.0,92200.0,0.003]
[1765531861466,0.001,92201.0,92188.0,9.278e-05]
[1765531861467,0.21691973,92200.0,92198.0,0.003]
[1765531861715,0.22778986,92191.0,92188.0,9.278e-05]
[1765531861916,0.01712,92191.0,92188.0,0.01094017]
[1765531862091,0.01712,92191.0,92189.0,0.21694562]
[1765531862383,0.01184586,92201.0,92197.0,0.01084633]
[1765531862587,0.002,92201.0,92198.0,0.01084622]
[1765531862766,0.01712,92199.0,92198.0,0.26573811]
[1765531863906,0.21689069,92213.0,92202.0,0.01084575]
[1765531864113,0.01084551,92204.0,92199.0,0.0108461]
[1765531864308,0.21691268,92203.0,92199.0,0.0108461]
[1765531864510,0.01712,92202.0,92199.0,0.0108461]
[1765531864754,0.01712,92202.0,92200.0,0.21691973]
[1765531865136,0.02796575,92202.0,92198.0,0.03796775]
[1765531865570,0.01084586,92201.0,92199.0,0.002]
[1765531865763,0.01084586,92201.0,92198.0,0.04881397]
[1765531866122,0.01084586,92201.0,92200.0,0.003]
[1765531866324,0.02896575,92202.0,92200.0,0.03095932]
[1765531866526,0.01812,92202.0,92200.0,0.03095932]
[1765531866729,0.01812,92202.0,92200.0,0.24787881]
[1765531866730,0.001,92202.0,92200.0,0.24787881]
[1765531866949,0.001,92201.0,92200.0,0.24787881]
[1765531867443,0.001,92202.0,92200.0,0.03095932]
[1765531867649,0.21691738,92201.0,92200.0,0.003]
[1765531867844,0.21691738,92201.0,92200.0,0.001]
[1765531868249,0.21791738,92201.0,92200.0,0.001]
[1765531868488,0.21691738,92201.0,92200.0,0.001]
[1765531868699,0.001,92202.0,92200.0,0.001]
[1765531869161,0.001,92201.0,92200.0,0.003]
[1765531869551,0.002,92201.0,92200.0,0.004]
[1765531869680,0.001,92201.0,92200.0,0.001]
[1765531869886,0.01084598,92200.0,92195.0,0.01084657]
[1765531870424,0.01084622,92198.0,92195.0,0.01084657]
[1765531870834,0.01084622,92198.0,92194.0,0.01084669]
[1765531871047,0.01084622,92198.0,92195.0,0.01084657]
[1765531871480,0.01084598,92200.0,92195.0,0.01084657]
[1765531871684,0.01084598,92200.0,92196.0,0.01084645]
[1765531871885,0.01184622,92198.0,92195.0,0.003]
[1765531872090,0.21692679,92197.0,92195.0,0.003]
[1765531872612,0.21692679,92197.0,92195.0,0.002]
[1765531873029,0.21692679,92197.0,92196.0,0.003]
[1765531873649,0.22776819,92199.0,92196.0,0.003]
[1765531873873,0.001,92197.0,92196.0,0.003]
[1765531874273,0.01084669,92194.0,92190.0,0.30154716]
[1765531874448,0.01084681,92193.0,92190.0,0.2907]
[1765531874777,0.01084681,92193.0,92185.0,0.21695427]
[1765531874778,0.21694326,92190.0,92188.0,0.29079278]
[1765531875206,0.01084704,92191.0,92188.0,0.29079278]
[1765531875383,0.01084681,92193.0,92189.0,0.01084728]
[1765531875522,0.01084681,92193.0,92190.0,0.30154716]
[1765531875721,0.01184681,92193.0,92190.0,0.30454716]
[1765531876194,0.01184681,92193.0,92190.0,0.2907]
[1765531876195,0.21693856,92192.0,92190.0,0.2907]
[1765531876412,0.001,92191.0,92190.0,0.2907]
[1765531876569,0.01184704,92191.0,92188.0,0.00309278]
[1765531876786,0.01084704,92191.0,92188.0,0.01094017]
[1765531877188,0.01184681,92193.0,92190.0,0.003]
[1765531877485,0.001,92193.0,92190.0,0.30454716]
[1765531877676,0.01712,92192.0,92190.0,0.2937]
[1765531877875,0.001,92191.0,92190.0,0.2937]
[1765531878185,0.01712,92192.0,92190.0,0.2937]
[1765531878410,0.01712,92192.0,92191.0,0.21694091]
[1765531879634,0.01812,92192.0,92191.0,0.21994091]
[1765531879979,0.002,92192.0,92191.0,0.22294091]
[1765531880400,0.002,92192.0,92191.0,0.006]
[1765531881428,0.002,92192.0,92191.0,0.22294091]
[1765531884000,0.002,92192.0,92191.0,0.006]
[1765531890671,0.002,92192.0,92191.0,0.22294091]
[1765531892942,0.002,92192.0,92191.0,0.006]
[1765531894185,0.21893856,92192.0,92191.0,0.006]
[1765531894419,0.002,92192.0,92191.0,0.006]
[1765531899412,0.21893856,92192.0,92191.0,0.006]
[1765531899792,0.22055143,92192.0,92191.0,0.006]
[1765531907041,0.00361287,92192.0,92191.0,0.006]
[1765531907196,0.002,92192.0,92191.0,0.006]
[1765531907600,0.01912,92192.0,92191.0,0.006]
[1765531907802,0.002,92192.0,92191.0,0.006]
[1765531908011,0.01912,92192.0,92191.0,0.006]
[1765531910967,0.002,92192.0,92191.0,0.006]
[1765531911217,0.01912,92192.0,92191.0,0.006]
[1765531914096,0.01912,92192.0,92191.0,0.01424054]
[1765531914469,0.01912,92192.0,92191.0,0.006]
[1765531920030,0.01912,92192.0,92191.0,0.01279912]
[1765531921022,0.01912,92192.0,92191.0,0.22974003]
[1765531921224,0.01912,92192.0,92191.0,0.22294091]
[1765531922373,0.002,92192.0,92191.0,0.22294091]
[1765531923563,0.002,92192.0,92191.0,0.26606889]
[1765531923776,0.002,92192.0,92191.0,0.22294091]
[1765531938867,0.002,92192.0,92191.0,0.55676889]
[1765531939506,0.002,92192.0,92191.0,0.51364091]
[1765531940666,0.002,92192.0,92191.0,0.53076091]
[1765531948113,0.002,92192.0,92191.0,0.57388889]
[1765531951186,0.002,92192.0,92191.0,0.31382]
[1765531962911,0.002,92192.0,92191.0,0.02312]
[1765531963096,0.002,92192.0,92191.0,0.006]
[1765531966106,0.21893856,92192.0,92191.0,0.006]
[1765531968887,0.01912,92192.0,92191.0,0.006]
[1765531969067,0.01912,92192.0,92191.0,0.01271235]
[1765531969314,0.002,92192.0,92191.0,0.01271235]
[1765531969515,0.002,92192.0,92191.0,0.05584033]
[1765531969669,0.002,92192.0,92191.0,0.34655244]
[1765531969870,0.002,92192.0,92191.0,0.33982798]
[1765531971146,0.001,92192.0,92191.0,0.33682798]
[1765531971399,0.002,92192.0,92191.0,0.34082798]
[1765531972222,0.001,92192.0,92191.0,0.33782798]
[1765531972634,0.002,92192.0,92191.0,0.34282798]
[1765531975238,0.002,92192.0,92191.0,0.39284637]
[1765531976550,0.001,92192.0,92191.0,0.38784637]
[1765531976770,0.001,92192.0,92191.0,0.39384637]
[1765531976771,0.002,92192.0,92191.0,0.39384637]
[1765531977271,0.001,92192.0,92191.0,0.38984637]
[1765531977477,0.002,92192.0,92191.0,0.39384637]
[1765531978654,0.002,92192.0,92191.0,1.39384637]
[1765531978854,0.0108421,92233.0,92227.0,0.01084281]
[1765531979056,0.01245497,92233.0,92229.0,0.03796775]
[1765531979662,0.01084222,92232.0,92229.0,0.04881032]
[1765531980103,0.22768813,92232.0,92229.0,0.03796775]
[1765531980892,0.01084281,92227.0,92225.0,0.03796775]
[1765531981091,0.01084257,92229.0,92226.0,0.01084292]
[1765531981306,0.01084269,92228.0,92225.0,0.03796775]
[1765531981507,0.22769721,92228.0,92225.0,0.03796775]
[1765531981845,0.22769684,92228.0,92225.0,0.03796775]
[1765531982114,0.01084316,92224.0,92221.0,0.03255464]
[1765531982313,0.22770644,92224.0,92221.0,0.03255464]
[1765531982531,0.01084316,92224.0,92221.0,0.03255464]
[1765531982767,0.01445556,92228.0,92223.0,0.01084328]
[1765531982945,0.00361287,92228.0,92226.0,0.21685778]
[1765531983171,0.001,92227.0,92225.0,0.01084304]
[1765531983709,0.00161287,92228.0,92225.0,0.01084304]
[1765531983911,0.01345556,92228.0,92225.0,0.01084304]
[1765531984459,0.01245556,92228.0,92225.0,0.01084304]
[1765531984800,0.01345556,92228.0,92225.0,0.01084304]
[1765531985004,0.01545556,92228.0,92225.0,0.01084304]
[1765531985207,0.21686093,92225.0,92221.0,0.04339815]
[1765531985467,0.01084304,92225.0,92222.0,0.01084339]
[1765531986359,0.01184304,92225.0,92222.0,0.01084339]
[1765531986989,0.01084304,92225.0,92222.0,0.01084339]
[1765531987437,0.01184304,92225.0,92222.0,0.01084339]
[1765531988116,0.01284304,92225.0,92222.0,0.01084339]
[1765531988997,0.002,92225.0,92222.0,0.01084339]
[1765531989227,0.002,92225.0,92223.0,0.21686564]
[1765531989701,0.002,92225.0,92222.0,0.01084339]
[1765531990284,0.22870408,92225.0,92221.0,0.03255464]
[1765531990514,0.01084316,92224.0,92221.0,0.03255464]
[1765531990764,0.01084316,92224.0,92220.0,0.22771621]
[1765531990941,0.01184304,92225.0,92221.0,0.01084351]
[1765531991240,0.01184304,92225.0,92222.0,0.01084339]
[1765531991476,0.01084304,92225.0,92222.0,0.01084339]
[1765531991914,0.002,92225.0,92222.0,0.22771127]
[1765531992134,0.01084292,92226.0,92222.0,0.22771127]
[1765531992333,0.002,92225.0,92222.0,0.22771127]
[1765531992913,0.001,92225.0,92222.0,0.22771127]
[1765531993969,0.22870473,92225.0,92220.0,0.04339827]
[1765531994196,0.22970473,92225.0,92220.0,0.04339827]
[1765531994886,0.01084316,92224.0,92221.0,0.01084351]
[1765531995492,0.01284304,92225.0,92221.0,0.01084351]
[1765531995699,0.01184304,92225.0,92222.0,0.01084339]
[1765531996013,0.22870652,92224.0,92221.0,0.01184304]
[1765531996314,0.22870652,92224.0,92219.0,0.30154375]
[1765531996315,0.01084398,92217.0,92214.0,0.30154434]
[1765531996496,0.01084386,92218.0,92215.0,0.03255694]
[1765531996893,0.01084375,92219.0,92215.0,0.04340116]
[1765531997064,0.22772301,92218.0,92215.0,0.03255694]
[1765531997280,0.2168821,92216.0,92214.0,9.278e-05]
[1765531997513,0.2613861,92216.0,92214.0,9.278e-05]
[1765531998684,0.2633861,92216.0,92215.0,0.001]
[1765531998956,0.2633861,92216.0,92214.0,9.278e-05]
[1765531999354,0.2643861,92216.0,92214.0,9.278e-05]
[1765531999558,0.2198821,92216.0,92214.0,9.278e-05]
[1765532002797,0.003,92216.0,92215.0,0.03796775]
[1765532003004,0.003,92216.0,92215.0,0.05181847]
[1765532004189,0.002,92216.0,92215.0,0.05181847]
[1765532004397,0.02796292,92226.0,92222.0,0.01084339]
[1765532004736,0.01084304,92225.0,92222.0,0.01084339]
[1765532005313,0.02796292,92226.0,92223.0,0.01084328]
[1765532005508,0.02796292,92226.0,92223.0,0.0201653]
[1765532005954,0.001,92225.0,92223.0,0.0201653]
[1765532006388,0.001,92225.0,92223.0,0.23702947]
[1765532006601,0.001,92225.0,92223.0,0.01084328]
[1765532007330,0.01812,92226.0,92223.0,0.01084328]
[1765532007790,0.001,92226.0,92223.0,0.23594616]
[1765532007989,0.001,92225.0,92223.0,0.22770847]
[1765532008190,0.001,92226.0,92223.0,0.22770847]
[1765532008573,0.002,92226.0,92223.0,0.22770847]